fUST/lending_fUST_20251117
["ID","MTS","AMOUNT","RATE_DAILY","PERIOD"]
[394154746,1763329837932,-500.0,0.00050958,2]
[394154749,1763329837942,-500.0,0.00050958,120]
[394154752,1763329837951,-500.0,0.00050958,2]
[394154755,1763329837960,-500.0,0.00050958,120]
[394154758,1763329837970,-651.85,0.00050958,7]
[394154761,1763329837979,-500.0,0.00050959,120]
[394154763,1763329837988,-331.0,0.0005099,120]
[394154765,1763329837997,-150.0,0.00051,85]
[394154767,1763329838007,-4426.6685147,0.00051,120]
[394154769,1763329838016,-163.12327781,0.00051096,120]
[394154771,1763329838025,-105158.20645,0.0005122,4]
[394154773,1763329838037,-1048.46406262,0.0005122,4]
[394154775,1763329838046,-2564.65,0.0005123,3]
[394154777,1763329838055,-1544.71,0.0005123,120]
[394154779,1763329838065,-500.0,0.00051231,7]
[394154781,1763329838074,-724.56,0.00051232,7]
[394154783,1763329838084,-1801.45,0.00051232,2]
[394154785,1763329838093,-500.0,0.00051232,2]
[394154787,1763329838102,-500.0,0.00051232,120]
[394154789,1763329838112,-500.0,0.00051232,2]
[394154791,1763329838121,-500.0,0.00051232,120]
[394154793,1763329838131,-651.85,0.00051232,7]
[394154795,1763329838140,-500.0,0.00051273,7]
[394154797,1763329838149,-500.0,0.00051273,10]
[394154799,1763329838158,-15916.51789895,0.0005143,4]
[394154948,1763329839908,-1289.37237096,0.0005143,4]
[394155273,1763329843218,-537.59172837,0.00049489,2]
[394155353,1763329845971,-1560.129628,0.00049489,2]
[394155354,1763329845982,-186930.11290045,0.00049489,2]
[394155355,1763329846085,-1899.6254269,0.00049489,2]
[394155356,1763329846097,-18431.8608748,0.00049489,2]
[394155358,1763329979576,249.5315102,0.00035,2]
[394155374,1763330668892,160.0,0.00035,2]
[394155376,1763330806925,302.880559,0.00013699,2]
[394155377,1763330807139,302.880559,0.00020187,2]
[394155378,1763330807359,302.880559,0.00026676,2]
[394155379,1763330807567,302.880559,0.00033165,2]
[394155380,1763330825126,-400.59295362,0.00039292,2]
[394155381,1763330825146,-400.0,0.00039308,5]
[394155382,1763330825165,-43.19846436,0.00039309,2]
[394155391,1763330868971,195.13087645,0.00032877,120]
[394155392,1763330880405,191.7,0.00018731,120]
[394155393,1763330880727,191.69,0.00018731,7]
[394155394,1763330958466,150.0,0.00034075,56]
[394155395,1763330958705,150.0,0.00033417,117]
[394155396,1763330958938,150.0,0.00033062,6]
[394155397,1763330959191,150.0,0.00029587,35]
[394155398,1763330959437,150.0,0.00027793,16]
[394155437,1763331032080,-150.0,0.0003739,48]
[394155439,1763331032090,-118.33688491,0.00038149,20]
[394155441,1763331032101,-31.66311509,0.00038149,20]
[394155443,1763331032110,-150.0,0.00038149,110]
[394155445,1763331032119,-106.80153564,0.00039309,2]
[394155447,1763331032128,-295.195,0.00039309,2]
[394155449,1763331032138,-150.0,0.00039309,2]
[394155451,1763331032147,-178.19595956,0.00039309,2]
[394155454,1763331032169,-55.46604044,0.00039309,2]
[394155456,1763331032178,-250.0,0.00039309,2]
[394155458,1763331032187,-265.548,0.00039309,2]
[394155460,1763331032198,-302.880559,0.00039654,2]
[394155462,1763331032207,-150.0,0.00039951,15]
[394155464,1763331032217,-154.240954,0.00040588,2]
[394155466,1763331032227,-181.77634872,0.00041763,120]
[394155468,1763331032238,-408.364007,0.00041863,2]
[394155470,1763331032247,-14543.1332815,0.00041935,28]
[394155472,1763331032256,-749.19,0.00042279,2]
[394155474,1763331032265,-150.0,0.00042309,2]
[394155476,1763331032274,-150.0,0.00042309,2]
[394155478,1763331032284,-150.0,0.00042309,2]
[394155481,1763331032296,-150.0,0.00042309,2]
[394155483,1763331032308,-150.0,0.00042309,2]
[394155485,1763331032320,-150.0,0.00042351,31]
[394155488,1763331032332,-150.0,0.00045309,2]
[394155490,1763331032344,-150.0,0.00045309,2]
[394155492,1763331032356,-395.4385375,0.00045833,30]
[394155494,1763331032367,-395.4385375,0.00045833,30]
[394155496,1763331032377,-395.4385375,0.00045833,30]
[394155499,1763331032387,-242.866031,0.00045833,30]
[394155501,1763331032398,-1498.37,0.00046123,2]
[394155503,1763331032412,-223.90276224,0.00046123,120]
[394155506,1763331032423,-302.880559,0.00046143,2]
[394155508,1763331032434,-150.0,0.00048311,28]
[394155510,1763331032446,-154.240954,0.00048961,2]
[394155512,1763331032457,-287.68827176,0.00048985,2]
[394155514,1763331032469,-894.59,0.00049196,120]
[394155516,1763331032480,-500.0,0.00049278,120]
[394155519,1763331032492,-500.0,0.00049278,120]
[394155521,1763331032503,-500.0,0.00049278,7]
[394155523,1763331032514,-607.19564307,0.00049278,120]
[394155525,1763331032525,-500.0,0.00049278,120]
[394155527,1763331032536,-500.0,0.00049278,120]
[394155529,1763331032547,-1297.93389051,0.00049279,2]
[394155532,1763331032558,-500.0,0.00049315,120]
[394155534,1763331032569,-500.0,0.00049315,7]
[394155536,1763331032580,-500.0,0.00049315,2]
[394155538,1763331032591,-1923.49,0.00049315,3]
[394155541,1763331032603,-1158.53,0.00049315,120]
[394155543,1763331032613,-500.0,0.00049315,120]
[394155545,1763331032624,-500.0,0.00049315,7]
[394155547,1763331032635,-1200.96,0.00049315,2]
[394155549,1763331032647,-500.0,0.00049315,7]
[394155551,1763331032659,-168.0,0.00049397,2]
[394155553,1763331032670,-150.0,0.00049588,5]
[394155556,1763331032681,-500.0,0.00049589,120]
[394155558,1763331032691,-500.0,0.00049589,7]
[394155560,1763331032703,-500.0,0.00049589,2]
[394155562,1763331032714,-1923.49,0.00049589,3]
[394155565,1763331032726,-1158.53,0.00049589,120]
[394155567,1763331032737,-500.0,0.00049589,120]
[394155569,1763331032748,-500.0,0.00049589,7]
[394155571,1763331032759,-1200.96,0.00049589,2]
[394155573,1763331032770,-500.0,0.00049589,7]
[394155575,1763331032780,-150.0,0.00049598,14]
[394155578,1763331032791,-500.0,0.00049861,2]
[394155580,1763331032800,-500.0,0.00049863,120]
[394155582,1763331032810,-500.0,0.00049863,7]
[394155584,1763331032823,-500.0,0.00049863,2]
[394155586,1763331032834,-1923.49,0.00049863,3]
[394155588,1763331032844,-1158.53,0.00049863,120]
[394155590,1763331032855,-500.0,0.00049863,120]
[394155593,1763331032867,-500.0,0.00049863,7]
[394155595,1763331032878,-1200.96,0.00049863,2]
[394155597,1763331032889,-500.0,0.00049863,7]
[394155599,1763331032900,-2247.56,0.00049966,2]
[394155601,1763331032912,-500.0,0.00049984,2]
[394155604,1763331032923,-500.0,0.00050135,2]
[394155606,1763331032935,-422.40674712,0.00050136,120]
[394155608,1763331032947,-500.0,0.00050136,7]
[394155610,1763331032958,-500.0,0.00050136,2]
[394155613,1763331032969,-1923.49,0.00050136,3]
[394155615,1763331032981,-1158.53,0.00050136,120]
[394155617,1763331032992,-553.57075209,0.00050136,120]
[394155619,1763331033004,-500.0,0.00050136,7]
[394155621,1763331033016,-1200.96,0.00050136,2]
[394155623,1763331033027,-500.0,0.00050136,7]
[394155625,1763331033037,-509.52937983,0.00050384,2]
[394155627,1763331033047,-4472.38124074,0.00050399,4]
[394155629,1763331033057,-943.61765636,0.00050399,4]
[394155631,1763331033066,-283.95666664,0.00050409,2]
[394155633,1763331033076,-500.0,0.0005041,7]
[394155636,1763331033087,-500.0,0.0005041,2]
[394155638,1763331033097,-1923.49,0.0005041,3]
[394155640,1763331033109,-1158.53,0.0005041,120]
[394155642,1763331033120,-500.0,0.0005041,7]
[394155644,1763331033132,-1200.96,0.0005041,2]
[394155647,1763331033143,-500.0,0.0005041,7]
[394155649,1763331033158,-248.6874137,0.00050411,2]
[394155651,1763331033168,-500.0,0.00050684,7]
[394155653,1763331033177,-500.0,0.00050684,2]
[394155655,1763331033187,-1923.49,0.00050684,3]
[394155657,1763331033198,-1158.53,0.00050684,120]
[394155659,1763331033209,-500.0,0.00050684,7]
[394155661,1763331033220,-1200.96,0.00050684,2]
[394155663,1763331033231,-500.0,0.00050684,7]
[394155665,1763331033242,-150.0,0.00050899,30]
[394155668,1763331033253,-171.73728719,0.00050958,7]
[394155670,1763331033263,-500.0,0.00050958,2]
[394155672,1763331033273,-1923.49,0.00050958,3]
[394155674,1763331033283,-1158.53,0.00050958,120]
[394155676,1763331033293,-500.0,0.00050958,7]
[394155678,1763331033304,-1200.96,0.00050958,2]
[394155680,1763331033314,-500.0,0.00050958,7]
[394155682,1763331033324,-150.0,0.00050999,85]
[394155684,1763331033335,-168.0,0.00051071,2]
[394155687,1763331033346,-500.0,0.00051096,120]
[394155689,1763331033356,-151.0,0.00051096,120]
[394155691,1763331033366,-151.0,0.00051096,120]
[394155693,1763331033377,-500.0,0.00051096,120]
[394155695,1763331033387,-151.0,0.00051096,120]
[394155697,1763331033398,-500.0,0.00051096,120]
[394155699,1763331033408,-500.0,0.00051096,120]
[394155702,1763331033419,-500.0,0.00051096,120]
[394155704,1763331033428,-500.0,0.00051096,120]
[394155706,1763331033439,-441.61090735,0.00051096,120]
[394155708,1763331033449,-500.0,0.00051096,120]
[394155710,1763331033459,-151.0,0.00051096,120]
[394155712,1763331033470,-150.0,0.00051229,3]
[394155714,1763331033480,-150.0,0.00051231,2]
[394155716,1763331033489,-150.0,0.00051231,120]
[394155718,1763331033500,-500.0,0.00051232,2]
[394155720,1763331033510,-1923.49,0.00051232,3]
[394155722,1763331033521,-1158.53,0.00051232,120]
[394155725,1763331033531,-500.0,0.00051232,7]
[394155727,1763331033541,-1200.96,0.00051232,2]
[394155741,1763331033667,-500.0,0.00051232,7]
[394155743,1763331033677,-500.0,0.00051233,120]
[394155745,1763331033688,-151.0,0.00051233,120]
[394155747,1763331033698,-151.0,0.00051233,120]
[394155749,1763331033707,-500.0,0.00051233,120]
[394155751,1763331033717,-151.0,0.00051233,120]
[394155753,1763331033726,-500.0,0.00051233,120]
[394155755,1763331033735,-500.72302965,0.00051233,120]
[394155757,1763331033745,-151.0,0.00051233,120]
[394155758,1763331033754,-150.0,0.00051272,7]
[394155761,1763331033764,-150.0,0.00051272,10]
[394155763,1763331033775,-453.0,0.0005137,120]
[394155765,1763331033785,-151.0,0.0005137,120]
[394155766,1763331033794,-245.0,0.0005137,120]
[394155768,1763331033804,-500.0,0.0005137,120]
[394155770,1763331033814,-154.30840794,0.0005137,120]
[394155772,1763331033823,-500.0,0.0005137,120]
[394155775,1763331033833,-151.0,0.0005137,120]
[394155777,1763331033843,-4472.38124074,0.0005142,4]
[394155778,1763331033853,-943.61765636,0.0005142,4]
[394155780,1763331033863,-312.74663057,0.00051429,120]
[394155783,1763331033873,-150.0,0.00051429,4]
[394155784,1763331033883,-1387.13860776,0.00051429,4]
[394155785,1763331033893,-35779.0499259,0.0005143,4]
[394155786,1763331033902,-7548.94125088,0.0005143,4]
[394155787,1763331033912,-263149.2804,0.0005144,30]
[394155788,1763331033922,-153.082619,0.0005144,120]
[394155789,1763331033931,-151.0,0.0005144,120]
[394155790,1763331033941,-151.0,0.0005144,120]
[394155791,1763331033950,-151.0,0.0005144,120]
[394155792,1763331033959,-151.0,0.0005144,120]
[394155793,1763331033968,-217.0,0.0005144,120]
[394155794,1763331033977,-151.0,0.0005144,120]
[394155795,1763331033987,-151.0,0.0005144,120]
[394155796,1763331033995,-151.0,0.0005144,120]
[394155797,1763331034004,-151.0,0.0005144,120]
[394155798,1763331034014,-151.0,0.0005144,120]
[394155799,1763331034023,-151.0,0.0005144,120]
[394155801,1763331034032,-151.0,0.0005144,30]
[394155803,1763331034041,-151.0,0.0005144,120]
[394155805,1763331034051,-151.796195,0.0005144,120]
[394155807,1763331034060,-151.0,0.0005144,120]
[394155809,1763331034070,-151.0,0.0005144,120]
[394155811,1763331034079,-153.190108,0.0005144,120]
[394155813,1763331034088,-168.976431,0.0005144,120]
[394155815,1763331034098,-151.0,0.0005144,120]
[394155817,1763331034108,-168.976431,0.0005144,120]
[394155819,1763331034117,-168.976431,0.0005144,120]
[394155821,1763331034127,-168.976431,0.0005144,120]
[394155823,1763331034137,-391.687993,0.0005144,120]
[394155824,1763331034147,-391.687993,0.0005144,120]
[394155827,1763331034157,-391.687993,0.0005144,120]
[394155829,1763331034169,-391.687993,0.0005144,120]
[394155831,1763331034179,-151.0,0.0005144,120]
[394155832,1763331034188,-151.0,0.0005144,120]
[394155835,1763331034198,-151.0,0.0005144,120]
[394155837,1763331034209,-151.0,0.0005144,120]
[394155839,1763331034218,-151.0,0.0005144,120]
[394155841,1763331034228,-151.0,0.0005144,120]
[394155843,1763331034238,-151.0,0.0005144,120]
[394155845,1763331034247,-151.0,0.0005144,120]
[394155847,1763331034256,-151.0,0.0005144,120]
[394155849,1763331034266,-151.0,0.0005144,120]
[394155851,1763331034276,-185.246876,0.0005144,120]
[394155853,1763331034285,-185.246876,0.0005144,120]
[394155855,1763331034294,-185.246876,0.0005144,120]
[394155857,1763331034303,-185.246876,0.0005144,120]
[394155859,1763331034313,-151.0,0.0005144,120]
[394155860,1763331034323,-151.0,0.0005144,120]
[394155862,1763331034332,-151.0,0.0005144,120]
[394155865,1763331034342,-151.0,0.0005144,120]
[394155866,1763331034351,-151.0,0.0005144,120]
[394155868,1763331034360,-151.0,0.0005144,30]
[394155870,1763331034370,-151.0,0.0005144,60]
[394155872,1763331034379,-151.0,0.0005144,95]
[394155874,1763331034387,-151.0,0.0005144,120]
[394155876,1763331034396,-151.0,0.0005144,120]
[394155878,1763331034406,-151.0,0.0005144,120]
[394155880,1763331034415,-151.0,0.0005144,120]
[394155882,1763331034424,-151.0,0.0005144,120]
[394155884,1763331034433,-151.0,0.0005144,120]
[394155886,1763331034442,-205.409923,0.0005144,120]
[394155888,1763331034452,-151.0,0.0005144,120]
[394155890,1763331034461,-205.409923,0.0005144,120]
[394155892,1763331034470,-205.409923,0.0005144,120]
[394155894,1763331034479,-254.199561,0.0005144,120]
[394155896,1763331034489,-205.409923,0.0005144,120]
[394155898,1763331034498,-254.199561,0.0005144,120]
[394155900,1763331034508,-254.199561,0.0005144,120]
[394155902,1763331034517,-254.199561,0.0005144,120]
[394155904,1763331034526,-151.0,0.0005144,120]
[394155906,1763331034535,-151.0,0.0005144,120]
[394155908,1763331034545,-240.22412,0.0005144,120]
[394155910,1763331034554,-151.0,0.0005144,120]
[394155912,1763331034563,-226.608699,0.0005144,120]
[394155914,1763331034573,-151.0,0.0005144,120]
[394155916,1763331034582,-151.0,0.0005144,120]
[394155918,1763331034592,-159.829767,0.0005144,120]
[394155919,1763331034600,-366.254661,0.0005144,120]
[394155921,1763331034609,-151.0,0.0005144,120]
[394155923,1763331034618,-366.254661,0.0005144,120]
[394155925,1763331034628,-151.0,0.0005144,120]
[394155927,1763331034638,-366.254661,0.0005144,120]
[394155929,1763331034647,-151.0,0.0005144,120]
[394155931,1763331034656,-151.0,0.0005144,120]
[394155933,1763331034666,-366.254661,0.0005144,120]
[394155935,1763331034675,-151.0,0.0005144,120]
[394155937,1763331034684,-151.0,0.0005144,30]
[394155939,1763331034694,-151.0,0.0005144,120]
[394155941,1763331034703,-298.585852,0.0005144,120]
[394155943,1763331034712,-151.0,0.0005144,120]
[394155945,1763331034722,-151.0,0.0005144,120]
[394155947,1763331034731,-154.056301,0.0005144,120]
[394155949,1763331034740,-151.0,0.0005144,120]
[394155951,1763331034751,-150.0,0.00051473,10]
[394155953,1763331034761,-500.0,0.00051473,10]
[394155955,1763331034771,-165.29,0.000515,14]
[394155957,1763331034780,-1243.75,0.000515,14]
[394155959,1763331034790,-162.04,0.000515,30]
[394155961,1763331034800,-500.0,0.00051506,2]
[394155963,1763331034810,-1923.49,0.00051506,3]
[394155965,1763331034819,-1158.53,0.00051506,120]
[394155967,1763331034829,-500.0,0.00051506,7]
[394155969,1763331034838,-1200.96,0.00051506,2]
[394155971,1763331034847,-500.0,0.00051506,7]
[394155973,1763331034857,-151.0,0.00051507,120]
[394155975,1763331034866,-500.0,0.00051507,120]
[394155977,1763331034877,-395.43302852,0.00051507,120]
[394155979,1763331034887,-151.0,0.00051507,120]
[394155981,1763331034896,-151.0,0.00051644,120]
[394155983,1763331034905,-500.0,0.00051644,120]
[394155985,1763331034915,-151.0,0.00051644,120]
[394155987,1763331034925,-500.0,0.0005178,2]
[394155989,1763331034934,-1923.49,0.0005178,3]
[394155991,1763331034943,-1158.53,0.0005178,120]
[394155993,1763331034952,-500.0,0.0005178,7]
[394155995,1763331034962,-1200.96,0.0005178,2]
[394155997,1763331034972,-500.0,0.0005178,7]
[394155999,1763331034983,-245.0,0.00051781,120]
[394156001,1763331034992,-500.0,0.00051781,120]
[394156003,1763331035001,-245.0,0.00051781,120]
[394156005,1763331035010,-162.0,0.000518,120]
[394156007,1763331035019,-157.96213312,0.00051918,120]
[394156009,1763331035028,-4472.38124074,0.00051943,4]
[394156011,1763331035037,-943.61765636,0.00051943,4]
[394156012,1763331035047,-184.6151934,0.00051953,120]
[394156014,1763331035055,-200.0,0.00052,120]
[394156016,1763331035067,-150.33730362,0.00052,120]
[394156018,1763331035076,-7967.0,0.00052,120]
[394156020,1763331035085,-10000.0,0.00052,120]
[394156022,1763331035095,-250.0,0.00052021,10]
[394156024,1763331035104,-1000.0,0.00052021,10]
[394156026,1763331035114,-500.0,0.00052054,2]
[394156028,1763331035123,-1923.49,0.00052054,3]
[394156030,1763331035132,-1158.53,0.00052054,120]
[394156032,1763331035142,-500.0,0.00052054,7]
[394156034,1763331035156,-1200.96,0.00052054,2]
[394156036,1763331035165,-500.0,0.00052054,7]
[394156038,1763331035174,-500.0,0.00052054,60]
[394156040,1763331035183,-500.0,0.00052328,2]
[394156042,1763331035193,-1923.49,0.00052328,3]
[394156044,1763331035202,-1158.53,0.00052328,120]
[394156046,1763331035212,-500.0,0.00052328,7]
[394156048,1763331035221,-1200.96,0.00052328,2]
[394156050,1763331035233,-500.0,0.00052328,7]
[394156052,1763331035242,-160.0,0.00052519,3]
[394156054,1763331035253,-170.86129145,0.00052519,5]
[394156056,1763331035263,-350.0,0.00052568,10]
[394156058,1763331035273,-1500.0,0.00052568,10]
[394156060,1763331035283,-500.0,0.00052602,2]
[394156062,1763331035292,-1923.49,0.00052602,3]
[394156064,1763331035302,-1158.53,0.00052602,120]
[394156066,1763331035312,-500.0,0.00052602,7]
[394156068,1763331035322,-1200.96,0.00052602,2]
[394156070,1763331035332,-500.0,0.00052602,7]
[394156072,1763331035341,-302.880559,0.00052632,2]
[394156074,1763331035351,-298.51530536,0.00052714,7]
[394156076,1763331035361,-440.88010213,0.00052876,2]
[394156078,1763331035371,-1923.49,0.00052876,3]
[394156080,1763331035381,-1158.53,0.00052876,120]
[394156082,1763331035390,-500.0,0.00052876,7]
[394156085,1763331035400,-1200.96,0.00052876,2]
[394156087,1763331035411,-500.0,0.00052876,7]
[394156088,1763331035419,-4472.38124074,0.0005299,4]
[394156090,1763331035429,-943.61765636,0.0005299,4]
[394156092,1763331035439,-1500.0,0.00053,120]
[394156094,1763331035450,-6353.3170188,0.00053,30]
[394156096,1763331035459,-10000.0,0.00053,120]
[394156098,1763331035468,-405.34707481,0.00053116,10]
[394156101,1763331035478,-1035.83379211,0.00053116,10]
[394156103,1763331035487,-1923.49,0.0005315,3]
[394156104,1763331035496,-1158.53,0.0005315,120]
[394156107,1763331035506,-500.0,0.0005315,7]
[394156109,1763331035515,-1200.96,0.0005315,2]
[394156111,1763331035524,-500.0,0.0005315,7]
[394156113,1763331035533,-500.0,0.0005315,60]
[394156115,1763331035542,-3000.0,0.000532,120]
[394156117,1763331035553,-153.0,0.00053205,30]
[394156119,1763331035562,-153.0,0.00053205,30]
[394156121,1763331035571,-306.0,0.00053205,30]
[394156122,1763331035580,-3014.33594257,0.0005333,120]
[394156124,1763331035589,-6415.39099931,0.0005333,4]
[394156144,1763331037906,-11474.13396369,0.0005333,4]
[394156145,1763331037916,-3774.47062544,0.0005333,4]
[394156148,1763331037930,-55173.86463312,0.0005334,120]
[394156150,1763331037940,-151.0,0.0005334,30]
[394156152,1763331037949,-151.0,0.0005334,120]
[394156154,1763331037959,-166.231944,0.0005334,120]
[394156156,1763331037969,-151.0,0.0005334,120]
[394156158,1763331037979,-168.976431,0.0005334,120]
[394156160,1763331037988,-151.0,0.0005334,120]
[394156162,1763331037998,-168.976431,0.0005334,120]
[394156164,1763331038009,-168.976431,0.0005334,120]
[394156166,1763331038019,-168.976431,0.0005334,120]
[394156169,1763331038030,-391.687993,0.0005334,120]
[394156173,1763331038042,-391.687993,0.0005334,120]
[394156176,1763331038052,-391.687993,0.0005334,120]
[394156179,1763331038062,-391.687993,0.0005334,120]
[394156182,1763331038071,-151.0,0.0005334,120]
[394156186,1763331038081,-151.0,0.0005334,120]
[394156188,1763331038090,-151.0,0.0005334,120]
[394156192,1763331038099,-151.0,0.0005334,120]
[394156194,1763331038108,-151.0,0.0005334,120]
[394156198,1763331038118,-151.0,0.0005334,120]
[394156201,1763331038127,-151.0,0.0005334,120]
[394156204,1763331038136,-151.0,0.0005334,120]
[394156207,1763331038146,-151.0,0.0005334,120]
[394156209,1763331038155,-151.0,0.0005334,120]
[394156213,1763331038169,-185.246876,0.0005334,120]
[394156216,1763331038179,-185.246876,0.0005334,120]
[394156218,1763331038188,-185.246876,0.0005334,120]
[394156221,1763331038198,-185.246876,0.0005334,120]
[394156224,1763331038208,-151.0,0.0005334,120]
[394156227,1763331038217,-151.0,0.0005334,120]
[394156229,1763331038227,-151.0,0.0005334,120]
[394156234,1763331038238,-151.0,0.0005334,120]
[394156237,1763331038247,-151.0,0.0005334,120]
[394156240,1763331038257,-151.0,0.0005334,30]
[394156242,1763331038267,-151.0,0.0005334,60]
[394156246,1763331038277,-151.0,0.0005334,95]
[394156248,1763331038286,-151.0,0.0005334,120]
[394156250,1763331038297,-151.0,0.0005334,120]
[394156252,1763331038307,-152.332522,0.0005334,120]
[394156254,1763331038317,-151.0,0.0005334,120]
[394156264,1763331038409,-151.0,0.0005334,120]
[394156266,1763331038420,-151.0,0.0005334,120]
[394156268,1763331038432,-205.409923,0.0005334,120]
[394156270,1763331038442,-151.0,0.0005334,120]
[394156272,1763331038454,-205.409923,0.0005334,120]
[394156274,1763331038464,-205.409923,0.0005334,120]
[394156276,1763331038474,-254.199561,0.0005334,120]
[394156278,1763331038484,-205.409923,0.0005334,120]
[394156280,1763331038494,-254.199561,0.0005334,120]
[394156282,1763331038504,-254.199561,0.0005334,120]
[394156284,1763331038513,-254.199561,0.0005334,120]
[394156286,1763331038522,-151.0,0.0005334,120]
[394156288,1763331038532,-151.0,0.0005334,120]
[394156290,1763331038541,-151.0,0.0005334,120]
[394156292,1763331038551,-151.0,0.0005334,120]
[394156294,1763331038561,-151.0,0.0005334,120]
[394156296,1763331038571,-366.254661,0.0005334,120]
[394156298,1763331038581,-151.0,0.0005334,120]
[394156300,1763331038590,-366.254661,0.0005334,120]
[394156302,1763331038599,-151.0,0.0005334,120]
[394156304,1763331038608,-366.254661,0.0005334,120]
[394156306,1763331038617,-151.0,0.0005334,120]
[394156308,1763331038626,-151.0,0.0005334,120]
[394156310,1763331038636,-366.254661,0.0005334,120]
[394156312,1763331038645,-151.0,0.0005334,120]
[394156314,1763331038654,-151.0,0.0005334,120]
[394156316,1763331038664,-151.0,0.0005334,120]
[394156318,1763331038672,-151.0,0.0005334,120]
[394156320,1763331038682,-151.0,0.0005334,120]
[394156322,1763331038691,-151.0,0.0005334,120]
[394156324,1763331038700,-391.11043,0.0005334,120]
[394156326,1763331038710,-151.0,0.0005334,120]
[394156328,1763331038720,-391.11043,0.0005334,120]
[394156330,1763331038730,-151.0,0.0005334,120]
[394156332,1763331038740,-391.11043,0.0005334,120]
[394156334,1763331038750,-297.980834,0.0005334,120]
[394156336,1763331038760,-325.509928,0.0005334,120]
[394156338,1763331038770,-391.11043,0.0005334,120]
[394156340,1763331038780,-151.0,0.0005334,30]
[394156342,1763331038790,-325.509928,0.0005334,120]
[394156344,1763331038800,-325.509928,0.0005334,120]
[394156346,1763331038810,-151.0,0.0005334,120]
[394156348,1763331038819,-151.0,0.0005334,120]
[394156350,1763331038829,-325.509928,0.0005334,120]
[394156352,1763331038839,-151.0,0.0005334,120]
[394156354,1763331038849,-151.0,0.0005334,120]
[394156356,1763331038859,-151.0,0.0005334,120]
[394156358,1763331038869,-151.0,0.0005334,120]
[394156360,1763331038879,-151.0,0.0005334,120]
[394156362,1763331038888,-151.0,0.0005334,120]
[394156364,1763331038898,-151.0,0.0005334,120]
[394156366,1763331038909,-151.0,0.0005334,120]
[394156368,1763331038919,-1923.49,0.00053424,3]
[394156370,1763331038928,-1158.53,0.00053424,120]
[394156373,1763331038938,-500.0,0.00053424,7]
[394156375,1763331038948,-1200.96,0.00053424,2]
[394156377,1763331038958,-500.0,0.00053424,7]
[394156378,1763331038967,-17889.524963,0.0005343,4]
[394156380,1763331038977,-3774.47062544,0.0005343,4]
[394156382,1763331038987,-340178.553,0.0005344,30]
[394156384,1763331038997,-288.200192,0.0005344,120]
[394156386,1763331039007,-151.0,0.0005344,120]
[394156389,1763331039017,-151.0,0.0005344,120]
[394156391,1763331039027,-151.0,0.0005344,120]
[394156392,1763331039037,-151.0,0.0005344,120]
[394156395,1763331039046,-151.0,0.0005344,120]
[394156396,1763331039055,-151.0,0.0005344,120]
[394156398,1763331039064,-151.0,0.0005344,120]
[394156400,1763331039074,-151.0,0.0005344,120]
[394156402,1763331039083,-278.218947,0.0005344,120]
[394156404,1763331039092,-151.0,0.0005344,120]
[394156406,1763331039101,-151.0,0.0005344,120]